bitfinex/quotes_SOLUSD_20250307
["timestamp","ask_amount","ask_price","bid_price","bid_amount"]
[1741311286049,7.5343,139.36,139.29,82.1]
[1741311286207,7.5343,139.36,139.3,0.28432314]
[1741311287410,2.1526,139.36,139.3,0.28432314]
[1741311287613,2.1526,139.36,139.29,394.1]
[1741311287927,7.5343,139.36,139.29,394.1]
[1741311289032,7.5343,139.36,139.29,531.9]
[1741311289239,11.16457663,139.36,139.29,531.9]
[1741311289609,5.78287663,139.36,139.3,0.28432314]
[1741311289808,2.1523,139.38,139.3,266.96154781]
[1741311290116,18.64964886,139.38,139.3,220.18432314]
[1741311290736,18.64964886,139.38,139.3,219.9]
[1741311291236,18.64964886,139.38,139.28,0.03]
[1741311291528,18.64964886,139.35,139.28,0.03]
[1741311292115,7.5355,139.34,139.28,0.03]
[1741311292538,18.64964886,139.33,139.28,0.03]
[1741311294123,2.1533,139.32,139.28,0.03]
[1741311294311,2.1528,139.35,139.28,0.03]
[1741311294512,2.1528,139.35,139.28,219.93]
[1741311294513,20.80244886,139.35,139.28,219.93]
[1741311295538,2.1528,139.35,139.29,0.28432314]
[1741311295842,2.1522,139.39,139.31,0.28432314]
[1741311296036,2.1522,139.39,139.31,220.18432314]
[1741311296340,2.1522,139.39,139.32,45.27035396]
[1741311296545,5.76973537,139.4,139.32,265.17035396]
[1741311297326,5.76973537,139.4,139.32,219.9]
[1741311297543,5.76973537,139.4,139.34,0.28432314]
[1741311297724,5.76973537,139.4,139.34,220.18432314]
[1741311297923,2.1851,139.4,139.34,220.18432314]
[1741311298324,0.033,139.4,139.34,265.4546771]
[1741311298643,0.033,139.4,139.36,45.5546771]
[1741311298819,0.033,139.4,139.36,220.18432314]
[1741311299639,0.033,139.4,139.36,272.6300771]
[1741311299829,0.033,139.4,139.37,45.27035396]
[1741311300017,0.033,139.4,139.37,265.17035396]
[1741311300218,0.033,139.4,139.37,219.9]
[1741311300727,0.033,139.4,139.38,0.28432314]
[1741311300926,0.033,139.4,139.38,312.28432314]
[1741311301316,0.033,139.4,139.38,312.0]
[1741311301511,0.033,139.4,139.37,219.9]
[1741311302343,5.4116,139.44,139.37,219.9]
[1741311303429,0.033,139.44,139.38,0.28432314]
[1741311303831,0.033,139.44,139.39,0.28432314]
[1741311304012,0.033,139.44,139.37,82.1]
[1741311304214,6.0858,139.43,139.36,137.8]
[1741311304417,18.64964886,139.42,139.35,82.1]
[1741311304924,2.1519,139.41,139.35,82.1]
[1741311305129,2.1519,139.41,139.35,137.8]
[1741311306020,7.5317,139.41,139.35,137.8]
[1741311306230,18.64964886,139.4,139.35,137.8]
[1741311306645,18.64964886,139.4,139.35,219.9]
[1741311306849,7.5327,139.39,139.35,219.9]
[1741311307140,7.5327,139.39,139.3,236.5337]
[1741311307324,18.64964886,139.38,139.3,219.9]
[1741311308244,18.64964886,139.38,139.3,531.9]
[1741311308553,2.1522,139.39,139.31,0.28432314]
[1741311308758,2.1522,139.39,139.33,0.28432314]
[1741311308949,26.18134886,139.41,139.33,219.9]
[1741311309126,26.18134886,139.41,139.33,82.1]
[1741311309730,5.66547046,139.41,139.34,0.14216157]
[1741311309936,6.0858,139.43,139.34,18.933972]
[1741311310140,2.1517,139.42,139.34,64.20432596]
[1741311310460,2.1516,139.43,139.36,0.28432314]
[1741311310623,2.1516,139.43,139.36,238.833972]
[1741311310955,7.5306,139.43,139.36,82.1]
[1741311311154,2.1516,139.43,139.37,0.28432314]
[1741311311331,2.1844,139.44,139.37,0.28432314]
[1741311311531,0.033,139.44,139.37,285.61031592]
[1741311311838,2.1845,139.44,139.38,312.0]
[1741311312148,2.1845,139.44,139.37,238.833972]
[1741311312648,2.1845,139.44,139.37,220.18432314]
[1741311312845,7.5631,139.44,139.37,220.18432314]
[1741311313422,2.1845,139.44,139.37,220.18432314]
[1741311314353,7.5631,139.44,139.37,219.9]
[1741311314850,0.033,139.44,139.38,0.28432314]
[1741311315028,0.033,139.44,139.37,219.9]
[1741311315223,18.68264886,139.44,139.37,219.9]
[1741311316065,99.74986079,139.44,139.37,82.1]
[1741311316227,0.14216157,139.4,139.31,82.1]
[1741311316551,6.6209,139.39,139.31,82.1]
[1741311316926,6.6209,139.39,139.32,0.28432314]
[1741311316927,2.1523,139.38,139.32,0.28432314]
[1741311317334,2.1522,139.4,139.32,30.32343044]
[1741311317544,2.1522,139.4,139.32,31.82987424]
[1741311317745,5.83733549,139.42,139.34,0.28432314]
[1741311317943,5.83733549,139.42,139.34,220.18432314]
[1741311318150,3.68553549,139.42,139.34,532.18432314]
[1741311318344,2.1518,139.42,139.34,532.18432314]
[1741311318753,0.033,139.44,139.36,0.28432314]
[1741311318936,18.64964886,139.43,139.35,137.8]
[1741311319437,18.64964886,139.43,139.34,82.1]
[1741311319834,0.14216157,139.42,139.33,137.8]
[1741311320145,0.14216157,139.36,139.28,0.03]
[1741311320345,110.33902236,139.36,139.23,219.9]
[1741311320674,110.33902236,139.36,139.23,227.0821]
[1741311320856,18.79181043,139.34,139.2,137.8]
[1741311321158,18.79181043,139.31,139.19,0.03]
[1741311321525,6.0522,139.32,139.2,30.0391073]
[1741311321857,6.0522,139.32,139.23,0.14216157]
[1741311322060,6.0522,139.32,139.23,169.63098509]
[1741311322239,2.153,139.34,139.25,0.28432314]
[1741311322440,22.81835098,139.36,139.25,168.12343044]
[1741311322635,22.81835098,139.36,139.25,183.21805066]
[1741311322830,22.81835098,139.36,139.27,18.933972]
[1741311322831,6.6433,139.36,139.27,18.933972]
[1741311323036,5.10825484,139.37,139.29,0.14216157]
[1741311323238,5.10825484,139.37,139.29,137.94216157]
[1741311323448,7.26075484,139.37,139.29,137.94216157]
[1741311323644,7.26075484,139.37,139.29,137.8]
[1741311323958,5.10825484,139.37,139.3,0.14216157]
[1741311324138,18.64964886,139.36,139.27,219.9]
[1741311324332,18.64964886,139.36,139.26,10.48]
[1741311324535,18.64964886,139.34,139.24,137.8]
[1741311325162,18.64964886,139.32,139.24,137.8]
[1741311325449,10.62216157,139.35,139.25,0.28432314]
[1741311325450,10.48,139.35,139.25,0.28432314]
[1741311325661,2.1529,139.35,139.25,138.08432314]
[1741311325855,18.64964886,139.36,139.25,265.31805066]
[1741311326161,25.9105037,139.37,139.27,0.28432314]
[1741311326358,7.26085484,139.37,139.27,220.18432314]
[1741311326557,11.12338646,139.38,139.31,0.28432314]
[1741311326754,11.12338646,139.38,139.31,220.18432314]
[1741311327057,11.12338646,139.38,139.31,227.36212314]
[1741311327442,11.12338646,139.38,139.33,18.933972]
[1741311327638,11.12338646,139.38,139.36,18.933972]
[1741311327839,11.12338646,139.38,139.36,283.96769952]
[1741311328042,11.12338646,139.38,139.36,220.18432314]
[1741311328761,11.12338646,139.38,139.37,376.06769952]
[1741311329143,11.12338646,139.38,139.37,383.24279952]
[1741311329348,0.033,139.4,139.38,0.28432314]
[1741311329543,0.033,139.4,139.37,312.0]
[1741311329761,0.033,139.4,139.37,138.08432314]
[1741311331043,0.033,139.4,139.37,145.25902314]
[1741311331265,0.033,139.4,139.37,190.39275066]
[1741311331455,0.033,139.4,139.37,227.35902314]
[1741311331760,0.033,139.4,139.39,0.28432314]
[1741311331939,0.033,139.4,139.39,138.08432314]
[1741311332760,0.033,139.4,139.39,532.18432314]
[1741311334365,0.033,139.4,139.39,603.14179952]
[1741311334667,0.033,139.4,139.39,291.14179952]
[1741311334863,11.12338646,139.53,139.41,0.28432314]
[1741311335054,11.12338646,139.53,139.43,45.41805066]
[1741311335263,7.94703005,139.52,139.42,10.46]
[1741311335568,13.32253005,139.52,139.42,10.46]
[1741311336177,13.32253005,139.52,139.43,0.28432314]
[1741311336544,18.64964886,139.51,139.43,82.1]
[1741311337147,7.5268,139.5,139.43,82.1]
[1741311337351,18.64964886,139.49,139.43,82.1]
[1741311337754,18.64964886,139.49,139.41,531.9]
[1741311338354,3.63697994,139.47,139.41,394.1]
[1741311338570,3.63697994,139.47,139.41,82.1]
[1741311338571,18.64964886,139.46,139.41,82.1]
[1741311339259,2.1513,139.45,139.41,82.1]
[1741311341271,2.1511,139.46,139.41,82.1]
[1741311341977,10.46,139.49,139.42,0.28432314]
[1741311342154,10.46,139.49,139.42,220.18432314]
[1741311342349,10.46,139.49,139.42,265.31805066]
[1741311342750,12.67898646,139.52,139.43,20.43928163]
[1741311342963,13.27368646,139.52,139.43,71.77010915]
[1741311343275,2.1503,139.52,139.43,71.77010915]
[1741311343473,2.15,139.53,139.43,78.94210915]
[1741311343674,7.5251,139.53,139.43,78.94210915]
[1741311343872,7.5251,139.53,139.43,292.64500915]
[1741311344061,7.5251,139.53,139.43,291.13969952]
[1741311344370,11.16975994,139.53,139.43,246.005972]
[1741311344567,18.64964886,139.52,139.43,220.04216157]
[1741311344784,18.64964886,139.52,139.43,82.1]
[1741311345277,18.64964886,139.52,139.43,82.24216157]
[1741311345476,2.1503,139.51,139.43,89.41416157]
[1741311345673,2.1503,139.51,139.43,129.02340743]
[1741311345866,2.1503,139.51,139.43,82.38432314]
[1741311346165,2.1503,139.51,139.43,291.13969952]
[1741311346768,2.1503,139.51,139.43,220.18432314]
[1741311347383,18.64964886,139.52,139.43,220.18432314]
[1741311347583,5.3759,139.51,139.43,220.18432314]
[1741311348200,18.64964886,139.5,139.43,82.1]
[1741311348486,5.3759,139.51,139.43,82.1]
[1741311348695,18.64964886,139.5,139.43,82.1]
[1741311349971,7.5273,139.49,139.43,82.1]
[1741311350668,18.64964886,139.48,139.4,219.9]
[1741311351071,3.64217941,139.48,139.41,0.28432314]
[1741311351868,2.151,139.47,139.41,0.28432314]
[1741311352168,2.151,139.47,139.41,312.28432314]
[1741311352378,3.64217941,139.48,139.41,319.45732314]
[1741311352577,5.79297941,139.48,139.41,319.45732314]
[1741311353886,5.3758,139.52,139.41,539.35732314]
[1741311354490,24.02544886,139.52,139.41,532.18432314]
[1741311354690,3.56742642,139.49,139.41,532.18432314]
[1741311354907,3.56742642,139.49,139.41,219.9]
[1741311355091,18.64964886,139.48,139.41,82.1]
[1741311356081,6.1877,139.46,139.41,82.1]
[1741311356404,11.98,139.43,139.33,219.9]
[1741311356604,11.98,139.43,139.33,82.1]
[1741311356605,18.64964886,139.42,139.33,82.1]
[1741311356910,18.64964886,139.39,139.29,219.9]
[1741311357410,0.14216157,139.38,139.26,219.9]
[1741311357589,18.64964886,139.37,139.26,219.9]
[1741311357786,18.64964886,139.37,139.26,531.9]
[1741311357787,10.42,139.36,139.26,531.9]
[1741311358005,18.64964886,139.34,139.26,531.9]
[1741311358677,5.75512359,139.34,139.27,0.28432314]
[1741311358886,9.1956,139.35,139.26,531.9]
[1741311359192,10.42,139.36,139.27,45.41805066]
[1741311359500,2.1527,139.36,139.28,45.13372752]
[1741311359701,5.73203846,139.37,139.28,45.13372752]
[1741311359875,5.80920517,139.38,139.29,64.06769952]
[1741311360198,5.80920517,139.38,139.29,71.24689952]
[1741311360503,8.2034,139.4,139.32,45.13372752]
[1741311360736,99.71686079,139.43,139.32,45.13372752]
[1741311360737,2.1517,139.43,139.34,45.41805066]
[1741311360908,17.79218646,139.44,139.35,45.13372752]
[1741311360909,19.94368646,139.44,139.35,45.13372752]
[1741311361078,17.79218646,139.44,139.36,64.06769952]
[1741311361278,11.15638646,139.44,139.38,0.28432314]
[1741311361579,13.30788646,139.44,139.39,0.28432314]
[1741311362196,13.30788646,139.44,139.39,312.28432314]
[1741311362396,13.30788646,139.44,139.39,312.0]
[1741311362599,18.64964886,139.43,139.36,137.8]
[1741311362797,18.64964886,139.43,139.33,0.14216157]
[1741311363109,2.1845,139.44,139.36,0.14216157]
[1741311363281,2.1845,139.44,139.36,220.04216157]
[1741311363483,0.14216157,139.42,139.32,219.9]
[1741311363683,0.14216157,139.4,139.28,219.9]
[1741311363884,1.6144,139.37,139.28,219.9]
[1741311364084,18.64964886,139.35,139.25,219.9]
[1741311364816,18.64964886,139.35,139.26,0.28432314]
[1741311365190,18.64964886,139.35,139.25,219.9]
[1741311365380,6.1916,139.34,139.25,394.1]
[1741311365588,18.64964886,139.33,139.21,219.9]
[1741311365784,18.64964886,139.33,139.23,45.13372752]
[1741311365993,6.1916,139.34,139.24,45.13372752]
[1741311366227,2.1531,139.33,139.25,0.28432314]
[1741311366515,29.21181043,139.32,139.19,219.93]
[1741311366692,1.5718,139.31,139.19,0.03]
[1741311366894,18.79181043,139.3,139.19,0.03]
[1741311367499,18.64964886,139.3,139.19,0.03]
[1741311367896,0.14216157,139.29,139.19,0.03]
[1741311368221,18.64964886,139.27,139.19,0.03]
[1741311368592,18.64964886,139.24,139.19,0.03]
[1741311368800,10.42,139.26,139.19,0.03]
[1741311369017,10.42,139.26,139.2,0.28432314]
[1741311369314,28.4616328,139.29,139.2,45.41805066]
[1741311369515,9.93081156,139.29,139.2,183.21805066]
[1741311369729,3.56711156,139.29,139.2,183.21805066]
[1741311369894,18.64964886,139.3,139.2,137.8]
[1741311370094,18.64964886,139.27,139.19,0.03]
[1741311371901,18.64964886,139.27,139.19,137.83]
[1741311372103,18.64964886,139.27,139.19,449.83]
[1741311372331,22.31952524,139.27,139.19,449.83]
[1741311372634,3.52298051,139.29,139.21,45.13372752]
[1741311372809,36.09896619,139.3,139.2,46.78404524]
[1741311373015,29.23786127,139.29,139.2,137.8]
[1741311373204,81.2093735,139.28,139.19,0.03]
[1741311373406,18.64964886,139.27,139.19,0.03]
[1741311373808,29.31214962,139.27,139.19,145.15626157]
[1741311374416,2.1542,139.26,139.19,137.83]
[1741311374719,7.5398,139.26,139.19,0.03]
[1741311374925,18.64964886,139.25,139.19,0.03]
[1741311375631,2.1542,139.26,139.19,312.03]
[1741311375800,2.1542,139.26,139.19,319.2144]
[1741311376000,5.76647127,139.27,139.2,0.28432314]
[1741311376317,2.1537,139.29,139.2,0.28432314]
[1741311376526,10.43498155,139.28,139.2,227.36782314]
[1741311376726,10.43498155,139.28,139.22,0.28432314]
[1741311376899,10.43498155,139.28,139.26,45.13372752]
[1741311377101,3.6634,139.36,139.27,45.41805066]
[1741311377433,2.1526,139.37,139.29,0.28432314]
[1741311377932,2.1526,139.37,139.27,219.9]
[1741311377933,5.67433729,139.37,139.27,219.9]
[1741311378132,18.64964886,139.36,139.26,137.8]
[1741311378335,2.1528,139.35,139.27,0.28432314]
[1741311378633,5.66236627,139.37,139.29,0.28432314]
[1741311379037,18.64964886,139.36,139.27,219.9]
[1741311379212,5.66236627,139.37,139.27,219.9]
[1741311379405,18.64964886,139.36,139.27,219.9]
[1741311379605,18.64964886,139.36,139.28,312.0]
[1741311380513,3.50986627,139.37,139.29,0.28432314]
[1741311380764,2.1524,139.38,139.29,45.41805066]
[1741311381037,18.64964886,139.37,139.29,82.1]
[1741311381208,11.04769671,139.38,139.29,82.1]
[1741311381401,18.64964886,139.37,139.29,82.1]
[1741311382209,99.71686079,139.4,139.3,45.41805066]
[1741311382410,2.1522,139.39,139.3,265.31805066]
[1741311382611,2.1522,139.39,139.3,220.18432314]
[1741311383016,2.1522,139.39,139.3,219.9]
[1741311383220,18.64964886,139.37,139.3,82.1]
[1741311383524,99.71686079,139.37,139.28,219.9]
[1741311383912,99.71686079,139.37,139.29,0.28432314]
[1741311384113,81.06721193,139.37,139.3,45.13372752]
[1741311384326,81.06721193,139.37,139.29,0.28432314]
[1741311384532,18.64964886,139.35,139.28,82.1]
[1741311385052,18.64964886,139.39,139.29,45.41805066]
[1741311385251,3.56861761,139.4,139.31,0.28432314]
[1741311385459,0.033,139.4,139.33,0.28432314]
[1741311385769,0.033,139.4,139.33,45.41805066]
[1741311386634,0.033,139.4,139.33,0.28432314]
[1741311387146,0.033,139.4,139.32,219.9]
[1741311387728,0.033,139.4,139.32,82.1]
[1741311388750,2.185,139.4,139.32,82.1]
[1741311389245,18.64964886,139.39,139.32,394.1]
[1741311389448,18.64964886,139.39,139.28,219.9]
[1741311389642,0.14216157,139.38,139.28,219.9]
[1741311389826,18.64964886,139.36,139.28,82.1]
[1741311390027,18.79181043,139.34,139.25,6.2428]
[1741311390229,18.64964886,139.32,139.25,6.2428]
[1741311390539,8.0908,139.37,139.25,6.2428]
[1741311390540,18.64964886,139.34,139.26,0.28432314]
[1741311390740,3.56757339,139.37,139.3,0.28432314]
[1741311390932,18.64964886,139.37,139.3,82.1]
[1741311391140,2.1523,139.38,139.31,0.28432314]
[1741311391333,2.1523,139.38,139.31,220.18432314]
[1741311392456,2.1523,139.38,139.31,532.18432314]
[1741311392654,5.83239573,139.39,139.31,577.31805066]
[1741311393058,5.83239573,139.39,139.31,439.51805066]
[1741311393756,0.033,139.4,139.34,0.28432314]
[1741311393939,0.033,139.4,139.35,6.88622314]
[1741311394351,2.1851,139.4,139.35,6.88622314]
[1741311394563,0.033,139.4,139.35,6.88622314]
[1741311394759,0.033,139.4,139.35,271.91995066]
[1741311394938,0.033,139.4,139.35,279.09585066]
[1741311395134,0.033,139.4,139.35,226.78622314]
[1741311395796,0.033,139.4,139.37,0.28432314]
[1741311395954,0.033,139.4,139.37,220.18432314]
[1741311396269,0.033,139.4,139.35,51.73562752]
[1741311396270,0.033,139.4,139.35,88.7019]
[1741311396769,0.033,139.4,139.35,400.7019]
[1741311397357,0.033,139.4,139.36,0.28432314]
[1741311397567,0.033,139.4,139.36,45.41805066]
[1741311397967,0.033,139.4,139.36,0.28432314]
[1741311398170,0.033,139.4,139.35,82.1]
[1741311398462,18.64964886,139.39,139.32,219.9]
[1741311398668,18.64964886,139.39,139.32,82.1]
[1741311398869,2.1523,139.38,139.32,82.1]
[1741311399381,2.1523,139.38,139.31,0.03]
[1741311399382,18.64964886,139.37,139.31,0.03]
[1741311399552,0.14216157,139.36,139.28,82.1]
[1741311399750,18.64964886,139.34,139.25,219.93]
[1741311399948,18.64964886,139.34,139.26,0.28432314]
[1741311400784,29.02964886,139.37,139.26,265.31805066]
[1741311401076,14.01384255,139.38,139.29,0.28432314]
[1741311401392,14.01384255,139.38,139.29,265.31805066]
[1741311401680,0.033,139.4,139.32,45.13372752]
[1741311401885,0.033,139.4,139.34,0.28432314]
[1741311402577,0.033,139.4,139.35,45.13372752]
[1741311402783,0.033,139.4,139.38,0.14216157]
[1741311402956,0.033,139.4,139.38,145.11636157]
[1741311403156,0.033,139.4,139.38,137.94216157]
[1741311403375,0.033,139.4,139.38,137.8]
[1741311404673,0.033,139.4,139.38,144.9745]
[1741311404876,0.033,139.4,139.39,0.28432314]
[1741311405252,0.033,139.4,139.39,7.45842314]
[1741311405452,0.033,139.4,139.39,227.35842314]
[1741311405764,0.033,139.4,139.39,291.14179952]
[1741311406973,0.033,139.4,139.39,246.008072]
[1741311407173,0.033,139.4,139.39,219.9]
[1741311407370,0.033,139.4,139.38,137.8]
[1741311407768,0.033,139.4,139.38,82.1]
[1741311408154,0.033,139.4,139.33,1.5835]
[1741311408155,0.033,139.4,139.33,227.077]
[1741311408354,0.033,139.4,139.33,82.1]
[1741311408754,0.033,139.4,139.34,0.14216157]
[1741311409167,0.033,139.4,139.33,89.2771]
[1741311409576,0.033,139.4,139.34,0.14216157]
[1741311409761,0.033,139.4,139.33,82.1]
[1741311409957,18.68264886,139.4,139.33,82.1]
[1741311410804,0.033,139.4,139.33,89.277]
[1741311410986,0.033,139.4,139.33,82.1]
[1741311411179,2.1522,139.39,139.33,82.1]
[1741311411673,18.68264886,139.4,139.33,82.1]
[1741311411865,18.68264886,139.4,139.33,89.2771]
[1741311412079,20.83474886,139.4,139.33,82.1]
[1741311413479,18.68264886,139.4,139.33,89.2771]
[1741311413783,18.68264886,139.4,139.34,0.14216157]
[1741311413784,0.033,139.4,139.34,0.14216157]
[1741311414183,0.033,139.4,139.34,220.18432314]
[1741311414769,0.033,139.4,139.37,0.28432314]
[1741311414966,0.033,139.4,139.37,220.18432314]
[1741311415659,0.033,139.4,139.37,227.35932314]
[1741311415872,0.033,139.4,139.37,272.49305066]
[1741311416273,0.033,139.4,139.37,220.18432314]
[1741311416675,0.033,139.4,139.37,227.35932314]
[1741311416880,0.033,139.4,139.37,539.35932314]
[1741311417080,0.033,139.4,139.37,584.49305066]
[1741311417673,0.033,139.4,139.37,227.35932314]
[1741311417872,0.033,139.4,139.37,272.49305066]
[1741311418474,0.033,139.4,139.37,220.18432314]
[1741311418986,0.033,139.4,139.37,227.35932314]
[1741311419184,0.033,139.4,139.37,272.49305066]
[1741311420593,0.033,139.4,139.39,312.28432314]
[1741311420767,0.033,139.4,139.39,577.31805066]
[1741311421367,0.033,139.44,139.4,0.28432314]
[1741311421692,0.033,139.44,139.42,45.41805066]
[1741311421893,0.033,139.44,139.4,265.03372752]
[1741311422095,0.033,139.44,139.41,0.28432314]
[1741311422707,0.033,139.44,139.4,219.9]
[1741311423008,0.033,139.44,139.41,0.28432314]
[1741311423175,0.033,139.44,139.4,82.1]
[1741311424701,0.033,139.44,139.41,0.28432314]
[1741311424903,0.033,139.44,139.43,0.28432314]
[1741311425078,0.033,139.44,139.43,265.31805066]
[1741311425278,0.033,139.44,139.43,220.18432314]
[1741311426089,0.033,139.44,139.43,272.49005066]
[1741311426299,0.033,139.54,139.45,0.28432314]
[1741311426593,2.1829,139.54,139.47,0.14216157]
[1741311426770,0.033,139.54,139.47,45.41805066]
[1741311426969,0.033,139.54,139.5,0.28432314]
[1741311427275,0.033,139.54,139.5,266.82270023]
[1741311427583,0.033,139.54,139.5,220.18432314]
[1741311427971,0.033,139.54,139.53,0.28432314]
[1741311428193,0.033,139.54,139.53,265.31805066]
[1741311428393,0.033,139.54,139.53,220.18432314]
[1741311428694,0.033,139.54,139.53,283.96769952]
[1741311428897,0.033,139.54,139.53,285.56289952]
[1741311430317,0.033,139.54,139.53,292.72979952]
[1741311431420,0.033,139.54,139.53,604.72979952]
[1741311431800,0.033,139.58,139.54,156.44964886]
[1741311432003,0.033,139.58,139.57,64.06769952]
[1741311432197,0.033,139.59,139.58,20.933972]
[1741311432413,22.24677293,139.69,139.6,20.933972]
[1741311432724,11.15638646,139.68,139.67,64.06769952]
[1741311433025,11.15638646,139.68,139.67,283.96769952]
[1741311433226,11.15638646,139.68,139.64,148.12]
[1741311433407,11.15638646,139.68,139.65,0.28432314]
[1741311433598,11.15638646,139.68,139.65,45.41805066]
[1741311433794,11.15638646,139.68,139.66,45.13372752]
[1741311434018,11.15638646,139.68,139.67,0.28432314]
[1741311434324,11.15638646,139.68,139.67,138.08432314]
[1741311434617,2.1807,139.68,139.66,137.8]
[1741311435010,2.1807,139.68,139.64,312.0]
[1741311435202,2.1807,139.68,139.64,449.8]
[1741311435403,2.1807,139.68,139.64,137.8]
[1741311435598,2.1807,139.68,139.63,0.14216157]
[1741311435599,2.1807,139.68,139.63,137.8]
[1741311435812,2.1807,139.68,139.64,0.28432314]
[1741311436126,0.033,139.68,139.64,0.28432314]
[1741311437136,0.033,139.68,139.64,138.08432314]
[1741311437432,0.033,139.68,139.67,45.13372752]
[1741311437617,0.033,139.68,139.67,283.96769952]
[1741311438140,0.033,139.68,139.67,220.18432314]
[1741311438503,0.033,139.68,139.67,532.18432314]
[1741311439722,0.033,139.68,139.67,595.96769952]
[1741311440113,0.033,139.68,139.67,532.18432314]
[1741311440305,0.033,139.68,139.67,550.833972]
[1741311441335,0.033,139.68,139.67,595.96769952]
[1741311441537,0.033,139.68,139.67,220.18432314]
[1741311444606,0.033,139.68,139.67,291.12739952]
[1741311446229,0.033,139.68,139.67,319.03419952]
[1741311446740,0.033,139.73,139.69,21.56]
[1741311446918,0.033,139.73,139.72,48.83156557]
[1741311447120,0.033,139.73,139.72,268.73156557]
[1741311447319,0.033,139.73,139.72,220.18432314]
[1741311448255,0.033,139.73,139.72,219.9]
[1741311448928,0.033,139.73,139.67,226.2468]
[1741311449132,0.033,139.73,139.69,0.28432314]
[1741311449533,0.033,139.73,139.69,18.933972]
[1741311449740,0.033,139.73,139.69,48.83156557]
[1741311449940,0.033,139.73,139.69,0.28432314]
[1741311450150,0.033,139.73,139.69,137.8]
[1741311450456,0.033,139.73,139.7,0.28432314]
[1741311450653,0.033,139.73,139.7,220.18432314]
[1741311450816,0.033,139.73,139.72,0.14216157]
[1741311451830,0.033,139.73,139.7,220.04216157]
[1741311452730,0.033,139.73,139.71,8.80231329]
[1741311452927,0.033,139.73,139.72,48.83156557]
[1741311453129,0.033,139.76,139.73,0.14216157]
[1741311453334,0.033,139.76,139.75,48.83156557]
[1741311454148,0.033,139.76,139.75,220.18432314]
[1741311454323,0.033,139.76,139.75,268.73156557]
[1741311454925,0.033,139.76,139.75,587.88716557]
[1741311455618,0.033,139.76,139.75,557.989572]
[1741311455819,0.033,139.76,139.75,587.88716557]
[1741311458833,0.033,139.76,139.75,587.745004]
[1741311459025,0.033,139.76,139.75,587.88716557]
[1741311462844,0.033,139.76,139.75,568.95319357]
[1741311463046,0.033,139.76,139.75,587.60284243]
[1741311463441,0.033,139.76,139.75,568.95319357]
[1741311463743,0.033,139.76,139.75,587.60284243]
[1741311464046,0.033,139.76,139.75,550.833972]
[1741311464234,0.033,139.76,139.75,219.9]
[1741311465024,0.033,139.76,139.75,250.08191671]
[1741311465242,0.033,139.76,139.75,257.23751671]
[1741311465443,0.033,139.76,139.75,227.33992314]
[1741311465647,0.033,139.76,139.75,275.88716557]
[1741311466747,0.033,139.76,139.75,219.9]
[1741311467258,0.033,139.76,139.75,531.9]
[1741311467443,0.033,139.76,139.75,569.23751671]
[1741311467840,0.033,139.76,139.75,539.33992314]
[1741311469244,0.033,139.76,139.75,532.18432314]
[1741311469442,0.033,139.76,139.75,219.9]
[1741311469753,0.033,139.76,139.72,433.70369357]
[1741311469950,0.033,139.76,139.72,397.5367]
[1741311470252,0.033,139.76,139.75,0.14216157]
[1741311470928,0.033,139.76,139.75,7.29776157]
[1741311471128,0.033,139.76,139.75,0.14216157]
[1741311471730,0.033,139.76,139.73,0.14216157]
[1741311471948,0.033,139.76,139.73,0.28432314]
[1741311472250,0.033,139.76,139.72,227.0567]
[1741311472448,0.033,139.76,139.72,568.95429357]
[1741311472624,0.033,139.76,139.72,539.0567]
[1741311473249,0.033,139.76,139.72,531.9]
[1741311473642,0.033,139.76,139.72,394.1]